fUST/lending_fUST_20241213
["ID","MTS","AMOUNT","RATE_DAILY","PERIOD"]
[345125645,1734048632903,-300.0,0.0002445,2]
[345125646,1734048632912,-24900.0,0.00024451,2]
[345125647,1734048632921,-400.0,0.00024598,2]
[345125648,1734048632931,-947.50688048,0.0002465,2]
[345125649,1734048632940,-843.32784156,0.0002465,2]
[345125650,1734048632950,-250.0,0.00024802,2]
[345125651,1734048632959,-503.536089,0.00025229,2]
[345125652,1734048632969,-195.6817817,0.00025334,2]
[345125653,1734048632979,-400.0,0.00025508,2]
[345125654,1734048632988,-150.389,0.00025537,2]
[345125655,1734048632998,-170.9141674,0.00025936,2]
[345125657,1734048633008,-500.0,0.00026035,2]
[345125659,1734048633017,-500.0,0.00026035,2]
[345125661,1734048633026,-500.0,0.00026035,2]
[345125663,1734048633036,-500.0,0.00026035,2]
[345125665,1734048633046,-500.0,0.00026035,2]
[345125666,1734048633057,-320.15338407,0.00026035,2]
[345125668,1734048633067,-500.0,0.00026035,2]
[345125669,1734048633076,-90.33577349,0.00026035,2]
[345125670,1734048633385,-409.66422651,0.00026035,2]
[345125671,1734048633399,-500.0,0.00026035,2]
[345125672,1734048633410,-500.0,0.00026035,2]
[345125673,1734048633420,-500.0,0.00026035,2]
[345125674,1734048633430,-377.86059476,0.00026035,2]
[345125675,1734048633439,-500.0,0.00026035,2]
[345125676,1734048633449,-500.0,0.00026035,2]
[345125677,1734048633459,-390.50146032,0.00026035,2]
[345125678,1734048633468,-500.0,0.00026035,2]
[345125679,1734048633478,-500.0,0.00026035,2]
[345125680,1734048633487,-471.1122695,0.00026035,2]
[345125681,1734048633497,-500.0,0.00026035,2]
[345125682,1734048633506,-500.0,0.00026035,2]
[345125683,1734048633515,-626.75875271,0.00026035,2]
[345125684,1734048633525,-500.0,0.00026035,2]
[345125685,1734048633535,-500.0,0.00026035,2]
[345125686,1734048633545,-500.0,0.00026035,2]
[345125687,1734048633555,-500.0,0.00026035,2]
[345125688,1734048633566,-500.0,0.00026035,2]
[345125689,1734048633576,-500.0,0.00026035,2]
[345125690,1734048633585,-500.0,0.00026035,2]
[345125691,1734048633595,-500.0,0.00026035,2]
[345125692,1734048633605,-500.0,0.00026035,2]
[345125693,1734048633614,-500.0,0.00026035,2]
[345125694,1734048633624,-42405.45747516,0.00026036,2]
[345125715,1734048638670,-7498.01397883,0.00026036,2]
[345125716,1734048638682,-4822.96055039,0.00026036,2]
[345125872,1734049377187,169.137134,0.00013973,2]
[345125874,1734049497182,151.89163046,0.0002,2]
[345125889,1734049709523,9055.57284279,0.0002,2]
[345125962,1734049832167,-237.49450623,0.0002079,2]
[345125964,1734049832177,-6517.06159119,0.00021,2]
[345125966,1734049832187,-817.54163235,0.00022,3]
[345125968,1734049832197,-251.768044,0.00024296,2]
[345125970,1734049832207,-305.414599,0.00024455,2]
[345125972,1734049832217,-1521.71321941,0.00024603,2]
[345125974,1734049832227,-300.0,0.00024911,2]
[345125976,1734049832236,-300.0,0.00024911,2]
[345125978,1734049832246,-24900.0,0.00024914,2]
[345125979,1734049832255,-305.414599,0.00025359,2]
[345125981,1734049832264,-134.59061762,0.00025827,2]
[345125984,1734049832282,-129.62186155,0.00025827,2]
[345125986,1734049832291,-1762.07810653,0.00026,60]
[345126501,1734049838247,-24653.4044124,0.00026,60]
[345126503,1734049838256,-4409.86669926,0.00026198,2]
[345126504,1734049838265,-269.57396563,0.000262,2]
[345126506,1734049838274,-202.29,0.000262,7]
[345126508,1734049838283,-151.72201096,0.000262,7]
[345126509,1734049838292,-305.414599,0.00026264,2]
[345126511,1734049838301,-260.67381721,0.00026273,2]
[345126512,1734049838311,-500.0,0.00026273,2]
[345126514,1734049838320,-500.0,0.00026273,2]
[345126516,1734049838330,-312.34837297,0.00026298,2]
[345126518,1734049838340,-500.0,0.00026298,2]
[345126519,1734049838350,-311.36700943,0.00026298,2]
[345126521,1734049838359,-573.29144735,0.00026298,2]
[345126522,1734049838369,-500.0,0.00026298,2]
[345126524,1734049838378,-585.64044279,0.00026298,2]
[345126526,1734049838389,-500.0,0.00026298,2]
[345126527,1734049838398,-500.0,0.00026298,2]
[345126528,1734049838408,-500.0,0.00026298,2]
[345126529,1734049838418,-500.0,0.00026298,2]
[345126530,1734049838427,-500.0,0.00026298,2]
[345126531,1734049838436,-500.0,0.00026298,2]
[345126532,1734049838445,-500.0,0.00026298,2]
[345126533,1734049838454,-500.0,0.00026298,2]
[345126534,1734049838463,-500.0,0.00026298,2]
[345126535,1734049838472,-385.20876145,0.00026298,2]
[345126536,1734049838481,-500.0,0.00026298,2]
[345126537,1734049838491,-356.8139681,0.00026298,2]
[345126538,1734049838501,-218.15413193,0.00026298,2]
[345126539,1734049838510,-647.11122695,0.00026298,2]
[345126540,1734049838520,-139765.35626521,0.00026299,2]
[345126541,1734049838529,-6470.86362623,0.00026299,2]
[345126542,1734049838539,-285.445,0.00026299,13]
[345126543,1734049838549,-639126.7961778,0.00026299,5]
[345126545,1734049838559,-46268.00755692,0.000263,4]
[345126547,1734049838571,-6189.55034841,0.000263,4]
[345126549,1734049838582,-11056.37203961,0.000263,4]
[345126551,1734049838593,-5753.85911781,0.000263,4]
[345126553,1734049838605,-83128.49824204,0.000263,4]
[345126706,1734049839862,-3290.01473372,0.000263,4]
[345126707,1734049839874,-813.17957643,0.000263,4]
[345126708,1734049839904,-2338.40892057,0.000263,4]
[345126709,1734049839913,-269.57396561,0.00026505,2]
[345126710,1734049839923,-4409.86669923,0.00026527,2]
[345126711,1734049839933,-451.12,0.0002654,2]
[345126712,1734049839942,-269.57396561,0.00026809,2]
[345126713,1734049839951,-1000.0,0.00026821,2]
[345126714,1734049839961,-4409.86669923,0.00026856,2]
[345126715,1734049839970,-177.1273249,0.00026951,2]
[345126716,1734049839979,-420.0,0.00026989,2]
[345126717,1734049839989,-1253.23281583,0.00027,7]
[345126718,1734049839998,-5000.0,0.00027,2]
[345126719,1734049840007,-5000.0,0.00027,7]
[345126720,1734049840016,-5000.0,0.00027,7]
[345126721,1734049840025,-4494.40536825,0.00027,7]
[345126722,1734049840035,-354.0,0.00027,2]
[345126723,1734049840044,-269.57396561,0.00027114,2]
[345126724,1734049840053,-305.414599,0.00027169,2]
[345126725,1734049840061,-4409.86669923,0.00027185,2]
[345126726,1734049840070,-3200.0,0.00027194,2]
[345126727,1734049840079,-369.0,0.000273,13]
[345126728,1734049840089,-151.0,0.000273,18]
[345126729,1734049840099,-151.0,0.00027324,5]
[345126730,1734049840107,-500.0,0.00027373,2]
[345126731,1734049840116,-500.0,0.00027373,2]
[345126732,1734049840125,-500.0,0.00027373,2]
[345126733,1734049840134,-503.14471307,0.00027373,2]
[345126734,1734049840172,-500.0,0.00027397,7]
[345126735,1734049840189,-500.0,0.00027397,7]
[345126736,1734049840198,-500.0,0.00027397,7]
[345126737,1734049840208,-500.0,0.00027397,7]
[345126738,1734049840217,-500.0,0.00027397,7]
[345126739,1734049840226,-500.0,0.00027397,7]
[345126740,1734049840237,-500.0,0.00027397,7]
[345126741,1734049840248,-242.21431669,0.00027397,7]
[345126742,1734049840263,-500.0,0.00027397,7]
[345126743,1734049840272,-148.60894709,0.00027397,7]
[345126744,1734049840284,-351.39105291,0.00027397,7]
[345126745,1734049840293,-437.34894709,0.00027397,7]
[345126746,1734049840304,-62.65105291,0.00027397,7]
[345126747,1734049840315,-264.16846404,0.00027397,7]
[345126811,1734049842955,-523.32153596,0.00027397,7]
[345126812,1734049842966,-500.0,0.00027397,7]
[345126813,1734049842976,-500.0,0.00027397,7]
[345126814,1734049842986,-500.0,0.00027397,7]
[345126815,1734049842997,-500.0,0.00027397,7]
[345126816,1734049843008,-34.41087514,0.00027397,7]
[345126861,1734050367313,169.137134,0.00013973,2]
[345126887,1734050932586,300.0,0.0002022,3]
[345126923,1734051038068,-300.00065781,0.00022,2]
[345126925,1734051038079,-161.0,0.00022,2]
[345126926,1734051038089,-437.69471946,0.00023245,2]
[345127007,1734051040095,-62.30528054,0.00023245,2]
[345127008,1734051040105,-500.0,0.00024469,2]
[345127009,1734051040115,-218.712,0.00025136,2]
[345127043,1734051046071,-31.288,0.00025136,2]
[345127045,1734051046081,-251.768045,0.00025366,2]
[345127047,1734051046090,-500.0,0.00025692,2]
[345127049,1734051046101,-300.0,0.00025963,2]
[345127051,1734051046111,-300.0,0.00025963,2]
[345127053,1734051046121,-67.06684019,0.00025964,2]
[345127197,1734051287829,169.137134,0.00013973,2]
[345127209,1734051962836,86230.4263857,0.000255,56]
[345127407,1734052240356,-176.353649,0.00024209,2]
[345127408,1734052240366,-228.356,0.00025135,9]
[345127409,1734052240375,-300.0,0.00025135,2]
[345127410,1734052240384,-300.0,0.00025135,2]
[345127411,1734052240394,-14822.5363286,0.00025136,2]
[345127412,1734052240404,-151.0,0.00025358,4]
[345127413,1734052240414,-334.7,0.000254,2]
[345127414,1734052240424,-176.353649,0.00025403,2]
[345127415,1734052240433,-151.0,0.0002575,4]
[345127416,1734052240443,-249.64315642,0.000259,2]
[345127417,1734052240452,-432.27,0.00026,2]
[345127418,1734052240464,-151.0,0.00026143,5]
[345127419,1734052240475,-151.0,0.00026536,5]
[345127420,1734052240486,-1062.35466087,0.00026575,13]
[345127421,1734052240496,-176.353649,0.00026597,2]
[345127422,1734052240506,-671.3,0.00026739,15]
[345127423,1734052240515,-2204.93334965,0.00026829,2]
[345127424,1734052240525,-20002.50705017,0.000269,2]
[345127425,1734052240535,-151.0,0.00026929,5]
[345127426,1734052240544,-500.0,0.00026977,2]
[345127427,1734052240556,-300.0,0.00027,120]
[345127428,1734052240567,-439.0,0.00027,2]
[345127429,1734052240577,-2204.93334961,0.00027053,2]
[345127430,1734052240587,-4979.2,0.00027092,2]
[345127431,1734052240598,-420.0,0.00027226,2]
[345127432,1734052240607,-2204.93334961,0.00027278,2]
[345127433,1734052240617,-666.0,0.00027297,2]
[345127434,1734052240627,-8457.65355158,0.00027297,21]
[345127435,1734052240638,-431.31834505,0.00027297,2]
[345127436,1734052240647,-370.0,0.000273,13]
[345127437,1734052240657,-151.0,0.00027322,5]
[345127438,1734052240666,-151.12445724,0.00027372,2]
[345127439,1734052240676,-500.0,0.00027373,2]
[345127440,1734052240685,-500.0,0.00027373,2]
[345127441,1734052240695,-500.0,0.00027373,2]
[345127442,1734052240704,-500.0,0.00027373,2]
[345127443,1734052240718,-500.0,0.00027394,2]
[345127444,1734052240727,-377.76930349,0.00027394,2]
[345127445,1734052240737,-500.0,0.00027394,2]
[345127446,1734052240746,-500.0,0.00027394,2]
[345127447,1734052240756,-500.0,0.00027394,2]
[345127448,1734052240765,-500.0,0.00027394,2]
[345127449,1734052240775,-500.0,0.00027394,2]
[345127450,1734052240784,-500.0,0.00027394,2]
[345127451,1734052240794,-500.0,0.00027394,2]
[345127452,1734052240803,-421.79979907,0.00027394,2]
[345127453,1734052240813,-433.91544334,0.00027394,2]
[345127454,1734052240822,-500.0,0.00027394,2]
[345127455,1734052240832,-500.0,0.00027394,2]
[345127456,1734052240842,-240.05531174,0.00027394,2]
[345127457,1734052240851,-500.0,0.00027394,2]
[345127458,1734052240860,-500.0,0.00027394,2]
[345127459,1734052240870,-500.0,0.00027394,2]
[345127460,1734052240879,-500.0,0.00027394,2]
[345127461,1734052240889,-435.77302758,0.00027394,2]
[345127462,1734052240899,-500.0,0.00027394,2]
[345127463,1734052240908,-500.0,0.00027394,2]
[345127464,1734052240917,-314.0470906,0.00027394,2]
[345127465,1734052240927,-500.0,0.00027394,2]
[345127466,1734052240937,-500.0,0.00027394,2]
[345127467,1734052240947,-500.0,0.00027394,2]
[345127468,1734052240956,-500.0,0.00027394,2]
[345127469,1734052240970,-227.07426786,0.00027394,2]
[345127470,1734052240980,-500.0,0.00027394,2]
[345127471,1734052240989,-556.51987621,0.00027394,2]
[345127472,1734052240999,-500.0,0.00027394,2]
[345127473,1734052241009,-500.0,0.00027394,2]
[345127474,1734052241018,-500.0,0.00027394,2]
[345127475,1734052241028,-500.0,0.00027394,2]
[345127476,1734052241037,-500.0,0.00027394,2]
[345127477,1734052241047,-500.0,0.00027394,2]
[345127478,1734052241056,-500.0,0.00027394,2]
[345127479,1734052241065,-500.0,0.00027394,2]
[345127480,1734052241075,-500.0,0.00027394,2]
[345127481,1734052241084,-500.0,0.00027394,2]
[345127482,1734052241094,-500.0,0.00027394,2]
[345127483,1734052241104,-500.0,0.00027394,2]
[345127484,1734052241113,-500.0,0.00027394,2]
[345127485,1734052241123,-500.0,0.00027394,2]
[345127486,1734052241132,-500.0,0.00027394,2]
[345127487,1734052241142,-500.0,0.00027394,2]
[345127488,1734052241153,-500.0,0.00027394,2]
[345127489,1734052241162,-500.0,0.00027394,2]
[345127490,1734052241171,-500.0,0.00027394,2]
[345127491,1734052241182,-500.0,0.00027394,2]
[345127492,1734052241192,-500.0,0.00027394,2]
[345127493,1734052241202,-500.0,0.00027394,2]
[345127494,1734052241213,-500.0,0.00027394,2]
[345127495,1734052241223,-177.72457328,0.00027394,2]
[345127496,1734052241233,-500.0,0.00027394,2]
[345127497,1734052241243,-500.0,0.00027394,2]
[345127498,1734052241253,-39840.65553585,0.00027395,2]
[345127548,1734052246411,-412.0,0.00027,2]
[345127549,1734052246421,-19204.33186637,0.00027395,2]
[345127550,1734052403995,169.137134,0.00013973,2]
[345127601,1734053436528,-362.57512031,0.00021,5]
[345127602,1734053436538,-500.0,0.00024191,2]
[345127603,1734053436547,-635.26117737,0.00025,7]
[345127604,1734053436557,-300.0,0.00025499,2]
[345127605,1734053436566,-300.0,0.00025499,2]
[345127606,1734053436576,-2378.84920009,0.000255,5]
[345127607,1734053436691,-43889.15835683,0.000255,5]
[345127608,1734053436701,-1378.08334355,0.00025872,2]
[345127609,1734053436711,-5000.0,0.00025916,2]
[345127610,1734053436721,-176.353649,0.00025972,2]
[345127611,1734053436731,-414.002,0.0002603,2]
[345127612,1734053436740,-1378.0833435,0.00026233,2]
[345127613,1734053436750,-660.0,0.00026384,2]
[345127614,1734053436760,-1378.0833435,0.00026594,2]
[345127615,1734053436769,-1378.0833435,0.00026955,2]
[345127616,1734053436779,-182.685,0.00026999,15]
[345127617,1734053436789,-612.16222291,0.00026999,2]
[345127618,1734053436799,-285.20076783,0.00026999,2]
[345127619,1734053436808,-500.0,0.00026999,2]
[345127620,1734053436818,-252.57698064,0.00026999,2]
[345127621,1734053436828,-500.0,0.00026999,2]
[345127622,1734053436841,-500.0,0.00026999,2]
[345127623,1734053436851,-288.81874359,0.00026999,2]
[345127624,1734053436861,-46327.93030596,0.00027,2]
[345127625,1734053436871,-4970.30559141,0.00027,2]
[345127626,1734053436880,-81395.45540155,0.00027,3]
[345127627,1734053436890,-386.0,0.00027,2]
[345127628,1734053436900,-5000.0,0.00027,3]
[345127629,1734053436909,-5000.0,0.00027,3]
[345127630,1734053436920,-5000.0,0.00027,3]
[345127631,1734053436930,-2000.0,0.000272,2]
[345127632,1734053436939,-2000.0,0.000272,3]
[345127633,1734053436949,-2000.0,0.000272,4]
[345127634,1734053436959,-2000.0,0.000272,5]
[345127635,1734053436968,-2000.0,0.000272,6]
[345127636,1734053436978,-2000.0,0.000272,7]
[345127637,1734053436988,-151.0,0.00027249,5]
[345127638,1734053436997,-489.19932677,0.00027297,21]
[345127639,1734053437007,-181.60813803,0.00027297,21]
[345127640,1734053437016,-388.1865105,0.00027297,2]
[345127641,1734053437026,-1062.072195,0.000273,2]
[345127642,1734053437036,-1378.0833435,0.00027317,2]
[345127643,1734053437046,-500.0,0.00027373,2]
[345127644,1734053437055,-500.0,0.00027373,2]
[345127645,1734053437065,-25478.52677673,0.00027393,3]
[345127646,1734053437075,-320.41710397,0.00027393,2]
[345127647,1734053437084,-500.0,0.00027393,2]
[345127648,1734053437096,-319.21318855,0.00027393,2]
[345127649,1734053437106,-601.53759149,0.00027393,2]
[345127650,1734053437115,-605.80686496,0.00027394,2]
[345127651,1734053437124,-96421.36657043,0.00027394,2]
[345127652,1734053437137,-397.24888145,0.00027394,2]
[345127676,1734053438606,-8803.99965159,0.00027394,2]
[345127678,1734053438618,-1136.68331552,0.00027394,2]
[345127679,1734053438631,-10207.70204603,0.00027394,2]
[345127680,1734053438640,-166.369612,0.00027395,2]
[345127681,1734053438650,-500.0,0.00027397,7]
[345127682,1734053438660,-215.53476065,0.00027397,7]
[345127683,1734053438670,-500.0,0.00027397,7]
[345127684,1734053438679,-582.70757992,0.00027397,7]
[345127685,1734053438689,-500.0,0.00027397,7]
[345127686,1734053438699,-500.0,0.00027397,7]
[345127687,1734053438708,-500.0,0.00027397,7]
[345127688,1734053438718,-500.0,0.00027397,7]
[345127689,1734053438727,-500.0,0.00027397,7]
[345127690,1734053438737,-500.0,0.00027397,7]
[345127691,1734053438746,-509.40577235,0.00027397,7]
[345127692,1734053438756,-500.0,0.00027397,7]
[345127693,1734053438766,-574.32028116,0.00027397,7]
[345127694,1734053438776,-500.0,0.00027397,7]
[345127695,1734053438786,-500.0,0.00027397,2]
[345127696,1734053438795,-500.0,0.00027397,7]
[345127697,1734053438805,-601.91920967,0.00027397,7]
[345127698,1734053438814,-754.68,0.00027397,7]
[345127699,1734053438824,-500.0,0.00027397,7]
[345127700,1734053438834,-500.0,0.00027397,7]
[345127701,1734053438845,-209.26875675,0.00027397,7]
[345127702,1734053438855,-500.0,0.00027397,7]
[345127703,1734053438865,-500.0,0.00027397,7]
[345127704,1734053438875,-500.0,0.00027397,7]
[345127705,1734053438884,-500.0,0.00027397,7]
[345127706,1734053438894,-500.0,0.00027397,7]
[345127707,1734053438903,-500.0,0.00027397,7]
[345127708,1734053438913,-500.0,0.00027397,7]
[345127709,1734053438923,-500.0,0.00027397,7]
[345127710,1734053438933,-500.0,0.00027397,7]
[345127711,1734053438943,-500.0,0.00027397,7]
[345127712,1734053438952,-500.0,0.00027397,7]
[345127713,1734053438962,-857.56,0.00027397,7]
[345127714,1734053438972,-500.0,0.00027397,7]
[345127715,1734053438982,-500.0,0.00027397,7]
[345127716,1734053438992,-500.0,0.00027397,7]
[345127717,1734053439001,-500.0,0.00027397,7]
[345127718,1734053439011,-500.0,0.00027397,7]
[345127719,1734053439020,-500.0,0.00027397,7]
[345127720,1734053439030,-500.0,0.00027397,7]
[345127721,1734053439041,-500.0,0.00027397,7]
[345127722,1734053439050,-1168.91,0.00027397,7]
[345127723,1734053439060,-610.57,0.00027397,7]
[345127724,1734053439071,-791.09,0.00027397,7]
[345127725,1734053439081,-587.09,0.00027397,7]
[345127726,1734053439093,-500.0,0.00027397,7]
[345127727,1734053439103,-160.84088258,0.00027397,7]
[345127728,1734053439112,-521.24,0.00027397,7]
[345127729,1734053439122,-500.0,0.00027397,7]
[345127730,1734053439131,-192.31874432,0.00027397,7]
[345127731,1734053439141,-500.0,0.00027397,7]
[345127732,1734053439151,-651.47,0.00027397,7]
[345127733,1734053439161,-500.0,0.00027397,7]
[345127734,1734053439171,-200.0,0.00027397,7]
[345127735,1734053439185,-500.0,0.00027397,7]
[345127736,1734053439195,-500.0,0.00027397,7]
[345127737,1734053439205,-500.0,0.00027397,7]
[345127738,1734053439215,-500.0,0.00027397,7]
[345127739,1734053439225,-500.0,0.00027397,7]
[345127740,1734053439235,-500.0,0.00027397,7]
[345127741,1734053439244,-590.76546421,0.00027397,7]
[345127742,1734053439256,-684.63,0.00027397,7]
[345127743,1734053439266,-500.0,0.00027397,7]
[345127744,1734053439276,-500.0,0.00027397,7]
[345127745,1734053439286,-500.0,0.00027397,7]
[345127746,1734053439295,-500.0,0.00027397,7]
[345127747,1734053439306,-500.0,0.00027397,7]
[345127748,1734053439316,-500.0,0.00027397,10]
[345127749,1734053439325,-500.0,0.00027397,7]
[345127750,1734053439335,-500.0,0.00027397,7]
[345127751,1734053439526,-500.0,0.00027397,7]
[345127752,1734053439537,-500.0,0.00027397,7]
[345127753,1734053439547,-500.0,0.00027397,7]
[345127754,1734053439556,-500.0,0.00027397,7]
[345127755,1734053439566,-500.0,0.00027397,7]
[345127756,1734053439578,-500.0,0.00027397,7]
[345127757,1734053439589,-500.0,0.00027397,7]
[345127758,1734053439599,-500.0,0.00027397,7]
[345127759,1734053439609,-668.76,0.00027397,7]
[345127760,1734053439618,-500.0,0.00027397,7]
[345127761,1734053439628,-500.0,0.00027397,7]
[345127762,1734053439639,-500.0,0.00027397,7]
[345127763,1734053439648,-422.55409314,0.00027397,7]
[345127764,1734053439658,-500.0,0.00027397,7]
[345127765,1734053439667,-500.0,0.00027397,7]
[345127766,1734053439678,-500.0,0.00027397,7]
[345127767,1734053439687,-500.0,0.00027397,7]
[345127768,1734053439697,-500.0,0.00027397,7]
[345127769,1734053439707,-500.0,0.00027397,7]
[345127770,1734053439717,-500.0,0.00027397,7]
[345127771,1734053439727,-500.0,0.00027397,7]
[345127772,1734053439737,-637.17,0.00027397,7]
[345127773,1734053439746,-500.0,0.00027397,7]
[345127774,1734053439756,-483.99239594,0.00027397,7]
[345127775,1734053439766,-500.0,0.00027397,7]
[345127776,1734053439777,-500.0,0.00027397,7]
[345127777,1734053439787,-500.0,0.00027397,7]
[345127778,1734053439797,-500.0,0.00027397,7]
[345127779,1734053439808,-500.0,0.00027397,7]
[345127780,1734053439818,-154.89837646,0.00027397,7]
[345127781,1734053439827,-500.0,0.00027397,7]
[345127782,1734053439839,-500.0,0.00027397,7]
[345127783,1734053439850,-518.68,0.00027397,7]
[345127784,1734053439860,-500.0,0.00027397,7]
[345127785,1734053439870,-500.0,0.00027397,7]
[345127786,1734053439879,-500.0,0.00027397,7]
[345127787,1734053439889,-704.75,0.00027397,7]
[345127788,1734053439900,-500.0,0.00027397,7]
[345127789,1734053439910,-500.0,0.00027397,7]
[345127790,1734053439920,-500.0,0.00027397,7]
[345127791,1734053439930,-533.49566031,0.00027397,7]
[345127792,1734053439940,-500.0,0.00027397,7]
[345127793,1734053439949,-500.0,0.00027397,7]
[345127794,1734053439959,-231.82098566,0.00027397,7]
[345127795,1734053439969,-500.0,0.00027397,7]
[345127796,1734053439978,-500.0,0.00027397,7]
[345127797,1734053439988,-500.0,0.00027397,7]
[345127798,1734053439997,-500.0,0.00027397,7]
[345127799,1734053440007,-523.74472235,0.00027397,7]
[345127800,1734053440017,-574.22,0.00027397,7]
[345127801,1734053440027,-500.0,0.00027397,7]
[345127802,1734053440037,-263.93837344,0.00027397,7]
[345127803,1734053440051,-577.06,0.00027397,7]
[345127804,1734053440061,-500.0,0.00027397,7]
[345127805,1734053440071,-500.0,0.00027397,7]
[345127806,1734053440081,-500.0,0.00027397,7]
[345127807,1734053440093,-500.0,0.00027397,7]
[345127808,1734053440103,-500.0,0.00027397,7]
[345127809,1734053440113,-500.0,0.00027397,7]
[345127810,1734053440122,-812.08,0.00027397,7]
[345127811,1734053440132,-211.7176723,0.00027397,2]
[345127812,1734053440142,-500.0,0.00027397,7]
[345127813,1734053440151,-544.75319316,0.00027397,7]
[345127814,1734053440161,-500.0,0.00027397,7]
[345127815,1734053440171,-500.0,0.00027397,7]
[345127816,1734053440185,-555.83176973,0.00027397,7]
[345127817,1734053440194,-1179.47,0.00027397,7]
[345127818,1734053440204,-500.0,0.00027397,7]
[345127819,1734053440213,-262.70337964,0.00027397,7]
[345127820,1734053440224,-1695.6,0.00027397,7]
[345127821,1734053440234,-500.0,0.00027397,7]
[345127822,1734053440243,-500.0,0.00027397,7]
[345127823,1734053440254,-500.0,0.00027397,7]
[345127824,1734053440263,-500.0,0.00027397,7]
[345127825,1734053440273,-500.0,0.00027397,7]
[345127826,1734053440282,-500.0,0.00027397,7]
[345127827,1734053440291,-500.0,0.00027397,7]
[345127828,1734053440301,-500.0,0.00027397,7]
[345127829,1734053440311,-500.0,0.00027397,7]
[345127830,1734053440320,-500.0,0.00027397,7]
[345127831,1734053440330,-643.83,0.00027397,7]
[345127832,1734053440344,-500.0,0.00027397,7]
[345127833,1734053440355,-500.0,0.00027397,7]
[345127834,1734053440365,-500.0,0.00027397,7]
[345127835,1734053440375,-500.0,0.00027397,7]
[345127837,1734053440385,-1032.43,0.00027397,7]
[345127839,1734053440394,-1587.51,0.00027397,7]
[345127841,1734053440405,-1034.91,0.00027397,7]
[345127843,1734053440415,-500.0,0.00027397,7]
[345127845,1734053440426,-500.0,0.00027397,7]
[345127847,1734053440436,-500.0,0.00027397,7]
[345127849,1734053440446,-500.0,0.00027397,7]
[345127851,1734053440455,-500.0,0.00027397,7]
[345127852,1734053440464,-1832.95,0.00027397,7]
[345127853,1734053440474,-500.0,0.00027397,7]
[345127854,1734053440483,-746.08,0.00027397,7]
[345127855,1734053440493,-513.93982444,0.00027397,7]
[345127856,1734053440502,-500.0,0.00027397,7]
[345127857,1734053440512,-521.47534885,0.00027397,7]
[345127858,1734053440522,-500.0,0.00027397,7]
[345127859,1734053440531,-599.46412215,0.00027397,7]
[345127861,1734053440541,-1462.35,0.00027397,7]
[345127863,1734053440550,-500.0,0.00027397,7]
[345127865,1734053440559,-634.35,0.00027397,7]
[345127866,1734053440569,-887.16,0.00027397,7]
[345127868,1734053440578,-889.37,0.00027397,7]
[345127870,1734053440592,-500.0,0.00027397,7]
[345127872,1734053440605,-500.0,0.00027397,7]
[345127874,1734053440615,-500.0,0.00027397,2]
[345127876,1734053440627,-546.63716506,0.00027397,7]
[345127878,1734053440637,-623.43,0.00027397,7]
[345127879,1734053440646,-500.0,0.00027397,7]
[345127880,1734053440656,-500.0,0.00027397,7]
[345127881,1734053440665,-500.0,0.00027397,7]
[345127882,1734053440675,-500.0,0.00027397,7]